Cogmind - Beta 17.1 @@@ ROGUE MODE // 2026.08.31 @ 01:24:33 Player: Nell Result: Destroyed by G-47 Trooper with Particle Gun Performance ------------- Evolutions (0) 0 Regions Visited (1) 200 Robots Destroyed (14) 70 Value Destroyed (305) 305 Prototype IDs (0) 0 Alien Tech Used (0) 0 Bonus (0) 0 TOTAL SCORE: 575 Bonus ------- None Cogmind --------- Core Integrity 0/250 Matter 300/300 Energy 125/125 System Corruption 0% Temperature Cool (9) Movement Walking (120) Location -10/Materials Parts ------- > --- POWER (1) -------- Light Ion Engine > --- PROPULSION (2) --- Aluminum Leg > --- UTILITY (2) ------ Small Storage Unit > --- WEAPON (2) ------- (None) > --- INVENTORY (8) ---- Light Ion Engine Aluminum Leg Peak State ------------ > --- POWER ------------ Light Ion Engine > --- PROPULSION ------- Aluminum Leg Aluminum Leg > --- UTILITY ---------- Small Storage Unit Seismic Detector > --- WEAPON ----------- Assault Rifle Light Assault Rifle > --- INVENTORY -------- Light Ion Engine Light Treads Light Treads Light Assault Rifle [Rating: 7] Favorites ----------- Power Light Ion Engine Engine Light Ion Engine Propulsion Light Treads Treads Light Treads Leg Aluminum Leg Utility Small Storage Unit Device Seismic Detector Storage Small Storage Unit Protection Weapon Shielding Weapon Light Assault Rifle Ballistic Gun Light Assault Rifle Build | -11 -10 ------- Run | Yrd Mat Slots Evolved . | . . Power . | . . Propulsion . | . . Utility . | . . Weapon . | . . Parts Attached 13 | 10 3 Power 3 | 1 2 Engine 3 | 1 2 Core . | . . Reactor . | . . Propulsion 4 | 4 . Treads 2 | 2 . Leg 2 | 2 . Wheel . | . . Hover . | . . Flight . | . . Utility 3 | 2 1 Device 1 | 1 . Storage 1 | 1 . Processor . | . . Hackware . | . . Protection 1 | . 1 Artifact . | . . Weapon 3 | 3 . Energy Gun . | . . Energy Cannon . | . . Ballistic Gun 3 | 3 . Ballistic Cannon . | . . Launcher . | . . Special Weapon . | . . Impact Weapon . | . . Slashing Weapon . | . . Piercing Weapon . | . . Special Melee Weapon . | . . Unidentified Prototypes . | . . Parts Lost 8 | . 8 Power 1 | . 1 Propulsion 2 | . 2 Utility 2 | . 2 Weapon 3 | . 3 Highest Loss Streak 8 | . 8 To Critical Strikes . | . . Average Backups 4 | 2 4 Power 1 | . 1 Propulsion 1 | 1 1 Utility . | . . Weapon . | . . Tool/Special . | . . Unused Backups . | . . Power . | . . Propulsion . | . . Utility . | . . Weapon . | . . Tool/Special . | . . Average Slot Usage (%) 92 | . 92 Engine 14 | . 14 Treads 17 | . 17 Leg 9 | . 9 Device 4 | . 4 Storage 14 | . 14 Protection 7 | . 7 Ballistic Gun 24 | . 24 Peak Build Rating 7 | 7 7 Average Rating 6 | 5 6 On Entrance 3 | . 7 Avg Prop Armor Cover (%) 18 | . 18 Naked Turns . | . . Heaviest Build 14 | 12 14 Greatest Support 40 | 40 40 Greatest Overweight (x) 2 | 1 2 Average Overweight (x) . | . . Largest Inventory Capacity 8 | 8 8 Average Capacity 7 | 7 8 Most Carried 6 | 4 6 Average Carried 4 | 2 4 Final Capacity 8 | 8 8 Final Carried 4 | 4 2 Class Distribution -------------------- 100% | Mutant Dominant Class ---------------- Mutant | -10/Materials Resources | -11 -10 ----------- Run | Yrd Mat Matter Collected 530 | 262 268 Remotely . | . . Salvage Created 420 | 29 391 Parts 37 | 1 36 Haulers Intercepted . | . . Recyclers Shooed 1 | . 1 Parts Field Recycled . | . . Retrieved Matter . | . . Parts Self-Destructed . | . . Prevented . | . . Parts Restored . | . . Kills | -11 -10 ------- Run | Yrd Mat Combat Hostiles Destroyed 13 | . 13 Guns 13 | . 13 Classes Destroyed 3 | 1 2 Tunneler 1 | 1 . Swarmer 6 | . 6 Grunt 7 | . 7 Best Kill Streak 3 | 1 3 Combat Bots Only 3 | . 3 Max Kills in Single Turn 1 | 1 1 Gunslinging . | . . Exploded . | . . Melee . | . . Uniques/NPCs Destroyed . | . . Combat | -11 -10 -------- Run | Yrd Mat Hostile Shots Fired 115 | . 115 Missed 14 | . 14 Hits 101 | . 101 Projectile 101 | . 101 Critical Strikes 2 | . 2 Damage Taken 1100 | . 1100 Core 262 | . 262 Absorbed by Shields . | . . Redirected to Shielding 51 | . 51 Core Remaining (%) 100 | 100 . Volleys Fired 64 | 3 61 Largest 2 | 2 2 Hottest 40 | 40 40 Shots Fired 111 | 6 105 Gun 111 | 6 105 Cannon . | . . Launcher . | . . Special . | . . Kinetic 111 | 6 105 Thermal . | . . Explosive . | . . Electromagnetic . | . . Robot Hit Streak 8 | 5 8 Robot Miss Streak 4 | . 4 Penetration Max . | . . Secondary Targets . | . . Shots Hit Robots 65 | 5 60 Core Hits 30 | 3 27 Critical Kills 1 | . 1 Critical Parts Destroyed . | . . Critical Strikes 1 | . 1 Destroy 1 | . 1 Melee Attacks . | . . Impact . | . . Slashing . | . . Piercing . | . . Sneak Attacks . | . . Combat Hostiles . | . . Follow-up Attacks . | . . Damage Inflicted 691 | 66 625 Guns 686 | 65 621 Cannons . | . . Explosions . | . . Melee . | . . Ramming 5 | 1 4 Kinetic 686 | 65 621 Thermal . | . . Explosive . | . . Electromagnetic . | . . Impact . | . . Slashing . | . . Piercing . | . . Highest Corruption . | . . Average Corruption . | . . Corruption Purged . | . . Corruption Blocked . | . . Overload Shots . | . . Overflow Damage . | . . Projectiles . | . . Explosions . | . . Melee . | . . Knockbacks . | . . Impact . | . . Kinetic . | . . Secondary . | . . Self-Inflicted Damage . | . . Shots . | . . Rammed 4 | 1 3 Targets Rammed 4 | 1 3 Kicked . | . . Crushed . | . . Highest Temperature 21 | . 21 Average Temperature 8 | . 8 Received Heat Transfer 438 | . 438 Siege Activations . | . . Martial Activations . | . . Shielding Activations . | . . Robots Disrupted . | . . Combat Hostiles . | . . Robots Corrupted . | . . Combat Hostiles . | . . Parts Fried . | . . Impact Corruptions . | . . Robots Melted . | . . Combat Hostiles . | . . Parts Melted . | . . Heat Transferred . | . . Parts Sabotaged . | . . Parts Stolen . | . . Parts Stripped . | . . Power Chain Reactions . | . . Alert | -11 -10 ------- Run | Yrd Mat Maximum Alert Level . | . . Low Security (%) 100 | 100 100 Level 1 . | . . Level 2 . | . . Level 3 . | . . Level 4 . | . . Level 5 . | . . High Security . | . . Max Security . | . . Peak Influence 150 | 5 150 Initial . | . . Average 60 | . 70 Influence Increases 330 | 5 325 Destroy 0b10 Robot/C 260 | . 260 Destroy 0b10 Robot/NC 5 | 5 . Destroy Leader 50 | . 50 Lose Combat Pursuer 15 | . 15 Influence Decreases 269 | 5 264 Time Decay 189 | 5 184 Lost Part 80 | . 80 Squads Dispatched 3 | . 3 Investigation . | . . Extermination . | . . Reinforcement 3 | . 3 Assault . | . . Garrison . | . . Intercept . | . . Searches Triggered . | . . Construction Impeded . | . . Haulers Reinforced . | . . Active Scanning Responses . | . . Cargo Convoy Interrupts . | . . Stealth | -11 -10 --------- Run | Yrd Mat Distress Signals 1 | . 1 Communications Jammed . | . . Distress Signals . | . . Times Spotted 22 | . 22 Peak Tracking Total 5 | . 5 Tactical Retreats 1 | . 1 Traps | -11 -10 ------- Run | Yrd Mat Traps Triggered . | . . Indirectly . | . . Trap Hack Attempts . | . . Triggered . | . . Disarmed . | . . Reprogrammed . | . . Reused . | . . Traps Extracted . | . . Installed . | . . Triggered . | . . Machines | -11 -10 ---------- Run | Yrd Mat Machines Disabled . | . . Max in Single Turn . | . . Machines Repaired . | . . Machines Dismantled . | . . Machines Sabotaged . | . . Overloaded Fab Kills . | . . Hacking | -11 -10 --------- Run | Yrd Mat Machines Accessed 1 | . 1 Terminals 1 | . 1 Fabricators . | . . Repair Stations . | . . Recycling Units . | . . Scanalyzers . | . . Garrison Access . | . . Total Hacks 1 | . 1 Successful . | . . Failed 1 | . 1 Catastrophic . | . . Database Lockouts . | . . Manual 1 | . 1 Terminals 1 | . 1 Fabricators . | . . Repair Stations . | . . Recycling Units . | . . Scanalyzers . | . . Garrison Access . | . . Terminal Hacks . | . . Fabricator Hacks . | . . Repair Station Hacks . | . . Recycling Unit Hacks . | . . Scanalyzer . | . . Garrison Access Hacks . | . . Unauthorized Hacks . | . . Terminals . | . . Fabricators . | . . Repair Stations . | . . Recycling Units . | . . Scanalyzers . | . . Garrison Access . | . . Data Cores Recovered . | . . Used . | . . Hacking Detections 1 | . 1 Full Trace Events . | . . Feedback Events . | . . Feedback Blocked . | . . Robot Schematics Acquired . | . . Robots Built . | . . Authchips . | . . Time . | . . Total Robot Build Rating . | . . Part Schematics Acquired . | . . Parts Built . | . . Authchips . | . . Time . | . . Total Part Build Rating . | . . Part Studies Acquired . | . . Parts Repaired . | . . Time . | . . Parts Recycled . | . . Recycled Matter . | . . Retrieved Matter . | . . Retrieved Components . | . . Parts Scanalyzed . | . . Part Schematics Acquired . | . . Parts Damaged . | . . Bothacking | -11 -10 ------------ Run | Yrd Mat Used RIF Installer . | . . Robots Hacked . | . . Non-combat . | . . Combat . | . . Robot Hacks Applied . | . . Relay Couplers Released . | . . Fabnet Peak Effective % . | . . Robots Rewired . | . . Allies Hacked . | . . Hacks Repelled . | . . Allies | -11 -10 -------- Run | Yrd Mat Total Allies . | . . Largest Group . | . . Highest-Rated Group . | . . Highest-Rated Ally . | . . Total Orders . | . . Ally Attacks . | . . Total Damage . | . . Kills . | . . Allies Corrupted . | . . Allies Melted . | . . Intel | -11 -10 ------- Run | Yrd Mat Active Infowar (turns) 184 | 5 179 Seismic 184 | 5 179 Robot Analysis Total . | . . Derelict Logs Recovered . | . . Drone Launches . | . . Drone Recoveries . | . . Exploration | -11 -10 ------------- Run | Yrd Mat Turns Passed 634 | 92 542 Spaces Moved 311 | 50 261 Core 10 | 4 6 Treads 132 | 12 120 Legs 169 | 34 135 Wheels . | . . Hover . | . . Flight . | . . Fastest Speed 50 | 50 120 Average Speed 137 | 130 139 Slowest Speed 190 | 190 160 Overloaded Moves . | . . Propulsion Burnouts . | . . Robots Hopped . | . . Potential Cave-ins . | . . Cave-ins Triggered . | . . Exploration Rate (%) 24 | 3 45 Regions Visited 1 Branch Regions . Pre-discovered Areas . | . . Known Exits Taken . | . . Unknown Exits Taken 1 | 1 . Scrap Searched . | . . Spaces Dug . | . . Terrain Destroyed . | . . Melee . | . . Projectile . | . . AOE . | . . Terrain Rammed . | . . Walls Destroyed . | . . Machines Disabled . | . . Actions | -11 -10 --------- Run | Yrd Mat Total 410 | 66 344 Wait 10 | . 10 Move 310 | 49 261 Hop . | . . Pick Up 4 | 3 1 Fast Attach 7 | 7 . Attach 4 | . 4 Detach . | . . Swap 7 | 3 4 Drop . | . . Fire 64 | 3 61 Melee . | . . Ram 1 | . 1 Kick . | . . Crush 3 | 1 2 Escape Stasis . | . . Rewire . | . . Trap . | . . Miscellaneous . | . . Route ------- -11/Scrapyard -10/Materials (discovered 1 exit: [*Min]) History --------- Turn | Location | Event 32 | -11/Scrapyard | Discovered new exit (range 15) 93 | -11/Scrapyard | Entered Materials 306 | -10/Materials | Build established: Mutant 362 | -10/Materials | Discovered new exit (range 8) 511 | -10/Materials | Core integrity fell below 50% 572 | -10/Materials | Core integrity fell below 20% 612 | -10/Materials | Lost 8 parts (1p2n2u3w) 635 | -10/Materials | Destroyed by G-47 Trooper with Particle Gun Last Messages --------------- 00578_ R-06 Scavenger collects Heat Sink. 00581_ Lgt. Assault Rifle destroyed. 00581_ Slammed into G-47 Trooper. 00586_ Acquired 40 matter. 00586_ K-01 Serf collects debris. 00593_ Acquired 23 matter. 00595_ T-07 Excavator is excavating. 00595_ U-05 Engineer lays Concrete. 00599_ T-07 Excavator is excavating. 00599_ U-05 Engineer works on Matter Pump. 00599_ U-05 Engineer lays Concrete. 00602_ K-01 Serf collects debris. 00602_ T-07 Excavator destroyed. 00605_ K-01 Serf collects debris. 00607_ Matter Pump comes online. 00607_ U-05 Engineer works on Matter Pump. 00608_ K-01 Serf cleans the Matter Pump. 00609_ U-05 Engineer works on Matter Pump. 00612_ K-01 Serf collects debris. 00614_ T-07 Excavator is excavating. Map ----- +----------------------------------------------------+ | | | | | | | | | | | | | | | | | | | | | | | | | | | | | | | | | ???????????????????????????????????????????? | | ????????????###############????????????????? | | ????????????# # #????????????????? | | ????????????# """# #????????????????? | | ????????????#/ """# """ "#????????????????? | | ????????????# """# """ T#????????????????? | | ????????????# # """ "#????????????????? | | ????????????# #? ?????????????????? | | ???# ###########+######+######+###?????????? | | ? ^^ T @ !#?????? | | ? u !#????? | | ? ^u g !#????? | | ?################# """ << !#????? | | # #???# """ << !#????? | | # """ """ #???# """ << !##????? | | # """ """ #???# ####?????? | | # """ """ #???#u ?????????? | | # #???# """ """ ?????????? | | #######+########## """ """ ?????????? | | ###### *! """ ""????????????? | | # !%###### ???????????? | | %##/###### ??????????? | | # # ####+############??????????? | | ### # """ #??????????????????????????? | | ?????# # """ #??????????????????????????? | | ?????# # """ #??????????????????????????? | | ?????# / #??????????????????????????? | | ?????# %# #??????????????????????????? | | ?????# ###+####??????????????????????????? | | ?????# #????????????????????????????? | | ?????# #????????????????????????????? | | ?????+^ ^^ ^#????????????????????????????? | | ?????# #????????????????????????????? | | ??#### ## #????????????????????????????? | +----------------------------------------------------+ Best States ------------- Heat Dissipation 25 Energy Generation 10 Energy Capacity 250 Matter Stores 300 Matter Capacity 300 Sight Range 16 Terrain Scan Density 10 Weapon Shielding 33 Evasion (%) 55 Recoil Reduction 2 Item Schematics ----------------- None Robot Schematics ------------------ None Fabricated ------------ Nothing Repaired ---------- Nothing Studied --------- None Alien Tech Used ----------------- None Achievements -------------- None Challenges ------------ None Game ------ Seed TrapAlphaChainsaw Manual? 0 Play Time 00:09:57 Cumulative 54.5 hours Start 2026.08.31 @ 01:19:16 End 2026.08.31 @ 01:24:33 Sessions 1 Manual Loads 0 Difficulty Rogue Special Mode None Game No. 90 Rogue 90 Adventurer 0 Explorer 0 Win Type - Total 1 Types 1/0/0/0/0/0/0/0/0/0 Lore% 27 Gallery% 38 Achievement% 24 Wizard Run 0 Options --------- Layout 0 ASCII 0 Keyboard 1 Movement Arrows Keybinds 0 Fullscreen 2 Font 24/Smallcaps Map View 76x50 Zoom Use 0% Tactical HUD 1 Map Filters NONE Filters NONE Steam 1 RUN: f786f662-6d25-4af1-a923-8ccfda70cf8e